Workbook

Sheet Título

Sheet BH_Cultura
A1: Balanço Hídrico Sequencial (BHS) para intervalos menores ou iguais a 1 mês e maiores ou iguais a 1 dia
A2: O 1º intervalo que entra na linha 16 tem de ser obrigatoriamente aquele para o qual se conhece o valor do armazenamento de água (A).
A3: Em geral, este 1º armazenamento pode ser A = 0 ou A = U, mas pode ser um valor medido ou estimado <=U.
A4: Obrigatório preencher só as células a verde e as colunas encimadas com células de rótulo verde, até que tenha dados!
A5: É facultatico preencher as células a azul e as colunas encimadas com células de rótulo azul.
A9: Cultura: | B9: Trigo | E9: Estação: | F9: Tapada da Ajuda (Lisboa, Portugal)
C10: Graus | D10: Minutos | E10: Segundos | I10: Graus | J10: Minutos | K10: Segundos
B11: Latitude: | C11: 38 | D11: 42 | E11: 0 | F11: Norte | H11: Long.: | I11: 9 | J11: 11 | K11: 0 | L11: Oeste | N11: Alt.: | O11: 50 | P11: m
D12: Período dos dados:
A13: U | B13: 70 | C13: mm | E13: Valor do 1º A: | G13: 70 | H13: mm
A15: Ano | B15: Intervalo | C15: ETo | D15: Kc | E15: ETc | F15: P | G15: P-ETc | H15: L | I15: A | J15: DA | K15: ETr | L15: ETr/ETc | M15: Intervalo
C16: [mm] | F16: [mm] | G16: [mm] | H16: [mm] | I16: [mm] | J16: [mm] | K16: [mm]
A17: 1984 | B17: Jan. | C17: 27 | D17: 0.5 | E17: =IF(C17="","",C17*D17) -> 13.5 | F17: 44.3 | G17: =IF(C17="","",F17-E17) -> 30.8 | H17: =IF(G17="","",IF(I17=B13,0,10^4)) -> 0 | I17: =G13 -> 70 | J17: 0 | K17: =IF(G17="","",IF(G17>0,E17,F17+ABS(J17))) -> 13.5 | L17: =IF(G17="","",K17/E17) -> 1 | M17: =IF(B17="","",B17) -> Jan.
A18: 1984 | B18: Fev. | C18: 28 | D18: 0.5 | E18: =IF(C18="","",C18*D18) -> 14 | F18: 12.2 | G18: =IF(C18="","",F18-E18) -> -1.8 | H18: =IF(G18="","",IF(G18>=0,-$B$13*LN(I18/$B$13),H17-G18)) -> 1.8 | I18: =IF(G18="","",IF(G18>0,MIN($B$13,I17+G18),$B$13*EXP(-H18/$B$13))) -> 68.22294576 | J18: =IF(G18="","",I18-I17) -> -1.777054242 | K18: =IF(G18="","",IF(G18>0,E18,F18+ABS(J18))) -> 13.97705424 | L18: =IF(G18="","",K18/E18) -> 0.9983610173 | M18: =IF(B18="","",B18) -> Fev.
A19: 1984 | B19: Mar. | C19: 36 | D19: 0.8 | E19: 28.8 | F19: 47 | G19: =IF(C19="","",F19-E19) -> 18.2 | H19: =IF(G19="","",IF(G19>=0,-$B$13*LN(I19/$B$13),H18-G19)) -> 0 | I19: =IF(G19="","",IF(G19>0,MIN($B$13,I18+G19),$B$13*EXP(-H19/$B$13))) -> 70 | J19: =IF(G19="","",I19-I18) -> 1.777054242 | K19: =IF(G19="","",IF(G19>0,E19,F19+ABS(J19))) -> 28.8 | L19: =IF(G19="","",K19/E19) -> 1 | M19: Mar.
A20: 1984 | B20: Abr. | C20: 68 | D20: 1 | E20: 68 | F20: 39.7 | G20: -28.3 | H20: 28.3 | I20: 46.72173751 | J20: -23.27826249 | K20: 62.97826249 | L20: 0.9261509189 | M20: Abr.
A21: 1984 | B21: Mai. | C21: 59 | D21: 1.1 | E21: 64.9 | F21: 79.4 | G21: 14.5 | H21: 9.379504922 | I21: 61.22173751 | J21: 14.5 | K21: 64.9 | L21: 1 | M21: Mai.
A22: 1984 | B22: Jun. | C22: 99 | D22: 1.1 | E22: 108.9 | F22: 25.7 | G22: -83.2 | H22: 92.57950492 | I22: 18.65158047 | J22: -42.57015705 | K22: 68.27015705 | L22: 0.6269068599 | M22: Jun.
A23: 1984 | B23: Jul. | C23: 115 | D23: 0.5 | E23: 57.5 | F23: 2 | G23: -55.5 | H23: 148.0795049 | I23: 8.440771743 | J23: -10.21080872 | K23: 12.21080872 | L23: 0.2123618908 | M23: Jul.
A24: 1984 | B24: Ago. | C24: 120 | D24: 0.5 | E24: 60 | F24: 2.8 | G24: -57.2 | H24: 205.2795049 | I24: 3.728219918 | J24: -4.712551825 | K24: 7.512551825 | L24: 0.1252091971 | M24: Ago.
A25: 1984 | B25: Set. | C25: 95 | D25: 0.5 | E25: 47.5 | F25: 5.4 | G25: -42.1 | H25: 247.3795049 | I25: 2.043169573 | J25: -1.685050345 | K25: 7.085050345 | L25: 0.1491589546 | M25: Set.
A26: 1984 | B26: Out. | C26: 65 | D26: 0.5 | E26: 32.5 | F26: 46.4 | G26: 13.9 | H26: 103.5625321 | I26: 15.94316957 | J26: 13.9 | K26: 32.5 | L26: 1 | M26: Out.
A27: 1984 | B27: Nov. | C27: 42 | D27: 0.5 | E27: 21 | F27: 150.4 | G27: 129.4 | H27: 0 | I27: 70 | J27: 54.05683043 | K27: 21 | L27: 1 | M27: Nov.
A28: 1984 | B28: Dez. | C28: 32 | D28: 0.5 | E28: 16 | F28: 71.7 | G28: 55.7 | H28: 0 | I28: 70 | J28: 0 | K28: 16 | L28: 1 | M28: Dez.
A29: 1985 | B29: Jan. | C29: 19 | D29: 0.5 | E29: 9.5 | F29: 216 | G29: 206.5 | H29: 0 | I29: 70 | J29: 0 | K29: 9.5 | L29: 1 | M29: Jan.
A30: 1985 | B30: Fev. | C30: 36 | D30: 0.5 | E30: 18 | F30: 166.5 | G30: 148.5 | H30: 0 | I30: 70 | J30: 0 | K30: 18 | L30: 1 | M30: Fev.
A31: 1985 | B31: Mar. | C31: 39 | D31: 0.5 | E31: 19.5 | F31: 34.7 | G31: 15.2 | H31: 0 | I31: 70 | J31: 0 | K31: 19.5 | L31: 1 | M31: Mar.
A32: 1985 | B32: Abr. | C32: 56 | D32: 0.5 | E32: 28 | F32: 111.2 | G32: 83.2 | H32: 0 | I32: 70 | J32: 0 | K32: 28 | L32: 1 | M32: Abr.
A33: 1985 | B33: Mai. | C33: 65 | D33: 0.5 | E33: 32.5 | F33: 36.1 | G33: 3.6 | H33: 0 | I33: 70 | J33: 0 | K33: 32.5 | L33: 1 | M33: Mai.
A34: 1985 | B34: Jun. | C34: 96 | D34: 0.5 | E34: 48 | F34: 8 | G34: -40 | H34: 40 | I34: 39.53026854 | J34: -30.46973146 | K34: 38.46973146 | L34: 0.8014527387 | M34: Jun.
A35: 1985 | B35: Jul. | C35: 121 | D35: 0.5 | E35: 60.5 | F35: 0.4 | G35: -60.1 | H35: 100.1 | I35: 16.75162456 | J35: -22.77864398 | K35: 23.17864398 | L35: 0.3831180824 | M35: Jul.
A36: 1985 | B36: Ago. | C36: 120 | D36: 0.5 | E36: 60 | F36: 0 | G36: -60 | H36: 160.1 | I36: 7.108934583 | J36: -9.642689974 | K36: 9.642689974 | L36: 0.1607114996 | M36: Ago.
A37: 1985 | B37: Set. | C37: 108 | D37: 0.5 | E37: 54 | F37: 0.4 | G37: -53.6 | H37: 213.7 | I37: 3.305666441 | J37: -3.803268142 | K37: 4.203268142 | L37: 0.07783829893 | M37: Set.
A38: 1985 | B38: Out. | C38: 76 | D38: 0.5 | E38: 38 | F38: 0.5 | G38: -37.5 | H38: 251.2 | I38: 1.934644935 | J38: -1.371021506 | K38: 1.871021506 | L38: 0.04923740805 | M38: Out.
A39: 1985 | B39: Nov. | C39: 39 | D39: 0.5 | E39: 19.5 | F39: 133.3 | G39: 113.8 | H39: 0 | I39: 70 | J39: 68.06535507 | K39: 19.5 | L39: 1 | M39: Nov.
A40: 1985 | B40: Dez. | C40: 29 | D40: 0.5 | E40: 14.5 | F40: 113.8 | G40: 99.3 | H40: 0 | I40: 70 | J40: 0 | K40: 14.5 | L40: 1 | M40: Dez.
A41: 1986 | B41: Jan. | C41: 27 | D41: 0.5 | E41: 13.5 | F41: 70.2 | G41: 56.7 | H41: 0 | I41: 70 | J41: 0 | K41: 13.5 | L41: 1 | M41: Jan.
A42: 1986 | B42: Fev. | C42: 29 | D42: 0.5 | E42: 14.5 | F42: 146.4 | G42: 131.9 | H42: 0 | I42: 70 | J42: 0 | K42: 14.5 | L42: 1 | M42: Fev.
A43: 1986 | B43: Mar. | C43: 39 | D43: 0.5 | E43: 19.5 | F43: 28.7 | G43: 9.2 | H43: 0 | I43: 70 | J43: 0 | K43: 19.5 | L43: 1 | M43: Mar.
A44: 1986 | B44: Abr. | C44: 38 | D44: 0.5 | E44: 19 | F44: 35.4 | G44: 16.4 | H44: 0 | I44: 70 | J44: 0 | K44: 19 | L44: 1 | M44: Abr.
A45: 1986 | B45: Mai. | C45: 80 | D45: 0.5 | E45: 40 | F45: 26 | G45: -14 | H45: 14 | I45: 57.31115272 | J45: -12.68884728 | K45: 38.68884728 | L45: 0.9672211821 | M45: Mai.
A46: 1986 | B46: Jun. | C46: 99 | D46: 0.5 | E46: 49.5 | F46: 5.8 | G46: -43.7 | H46: 57.7 | I46: 30.69836905 | J46: -26.61278367 | K46: 32.41278367 | L46: 0.6548037104 | M46: Jun.
A47: 1986 | B47: Jul. | C47: 127 | D47: 0.5 | E47: 63.5 | F47: 0 | G47: -63.5 | H47: 121.2 | I47: 12.39219291 | J47: -18.30617614 | K47: 18.30617614 | L47: 0.2882862384 | M47: Jul.
A48: 1986 | B48: Ago. | C48: 108 | D48: 0.5 | E48: 54 | F48: 3.3 | G48: -50.7 | H48: 171.9 | I48: 6.006132054 | J48: -6.38606086 | K48: 9.68606086 | L48: 0.1793714974 | M48: Ago.
A49: 1986 | B49: Set. | C49: 91 | D49: 0.5 | E49: 45.5 | F49: 92.2 | G49: 46.7 | H49: 19.86344049 | I49: 52.70613205 | J49: 46.7 | K49: 45.5 | L49: 1 | M49: Set.
A50: 1986 | B50: Out. | C50: 76 | D50: 0.5 | E50: 38 | F50: 36.4 | G50: -1.6 | H50: 21.46344049 | I50: 51.51508429 | J50: -1.191047761 | K50: 37.59104776 | L50: 0.989238099 | M50: Out.
A51: 1986 | B51: Nov. | C51: 41 | D51: 0.5 | E51: 20.5 | F51: 95 | G51: 74.5 | H51: 0 | I51: 70 | J51: 18.48491571 | K51: 20.5 | L51: 1 | M51: Nov.
A52: 1986 | B52: Dez. | C52: 29 | D52: 0.5 | E52: 14.5 | F52: 56.6 | G52: 42.1 | H52: 0 | I52: 70 | J52: 0 | K52: 14.5 | L52: 1 | M52: Dez.
A53: 1987 | B53: Jan. | C53: 24 | D53: 0.5 | E53: 12 | F53: 125 | G53: 113 | H53: 0 | I53: 70 | J53: 0 | K53: 12 | L53: 1 | M53: Jan.
A54: 1987 | B54: Fev. | C54: 25 | D54: 0.5 | E54: 12.5 | F54: 160.8 | G54: 148.3 | H54: 0 | I54: 70 | J54: 0 | K54: 12.5 | L54: 1 | M54: Fev.
A55: 1987 | B55: Mar. | C55: 48 | D55: 0.5 | E55: 24 | F55: 28.8 | G55: 4.8 | H55: 0 | I55: 70 | J55: 0 | K55: 24 | L55: 1 | M55: Mar.
A56: 1987 | B56: Abr. | C56: 56 | D56: 0.5 | E56: 28 | F56: 39.5 | G56: 11.5 | H56: 0 | I56: 70 | J56: 0 | K56: 28 | L56: 1 | M56: Abr.
A57: 1987 | B57: Mai. | C57: 81 | D57: 0.5 | E57: 40.5 | F57: 0 | G57: -40.5 | H57: 40.5 | I57: 39.24891551 | J57: -30.75108449 | K57: 30.75108449 | L57: 0.7592860368 | M57: Mai.
A58: 1987 | B58: Jun. | C58: 109 | D58: 0.5 | E58: 54.5 | F58: 3.7 | G58: -50.8 | H58: 91.3 | I58: 18.99564092 | J58: -20.25327458 | K58: 23.95327458 | L58: 0.4395096254 | M58: Jun.
A59: 1987 | B59: Jul. | C59: 132 | D59: 0.5 | E59: 66 | F59: 1.1 | G59: -64.9 | H59: 156.2 | I59: 7.516244943 | J59: -11.47939598 | K59: 12.57939598 | L59: 0.1905969088 | M59: Jul.
A60: 1987 | B60: Ago. | C60: 118 | D60: 0.5 | E60: 59 | F60: 25.9 | G60: -33.1 | H60: 189.3 | I60: 4.68426738 | J60: -2.831977564 | K60: 28.73197756 | L60: 0.4869826706 | M60: Ago.
A61: 1987 | B61: Set. | C61: 113 | D61: 0.5 | E61: 56.5 | F61: 28.4 | G61: -28.1 | H61: 217.4 | I61: 3.135475873 | J61: -1.548791506 | K61: 29.94879151 | L61: 0.5300671063 | M61: Set.
A62: 1987 | B62: Out. | C62: 57 | D62: 0.5 | E62: 28.5 | F62: 109.1 | G62: 80.6 | H62: 0 | I62: 70 | J62: 66.86452413 | K62: 28.5 | L62: 1 | M62: Out.
A63: 1987 | B63: Nov. | C63: 38 | D63: 0.5 | E63: 19 | F63: 66.9 | G63: 47.9 | H63: 0 | I63: 70 | J63: 0 | K63: 19 | L63: 1 | M63: Nov.
A64: 1987 | B64: Dez. | C64: 33 | D64: 0.5 | E64: 16.5 | F64: 152.3 | G64: 135.8 | H64: 0 | I64: 70 | J64: 0 | K64: 16.5 | L64: 1 | M64: Dez.
A65: 1988 | B65: Jan. | C65: 29 | D65: 0.5 | E65: 14.5 | F65: 121.3 | G65: 106.8 | H65: 0 | I65: 70 | J65: 0 | K65: 14.5 | L65: 1 | M65: Jan.
A66: 1988 | B66: Fev. | C66: 28 | D66: 0.5 | E66: 14 | F66: 120.6 | G66: 106.6 | H66: 0 | I66: 70 | J66: 0 | K66: 14 | L66: 1 | M66: Fev.
A67: 1988 | B67: Mar. | C67: 44 | D67: 0.5 | E67: 22 | F67: 8.9 | G67: -13.1 | H67: 13.1 | I67: 58.0527677 | J67: -11.9472323 | K67: 20.8472323 | L67: 0.9476014681 | M67: Mar.
A68: 1988 | B68: Abr. | C68: 53 | D68: 0.5 | E68: 26.5 | F68: 35 | G68: 8.5 | H68: 3.535007683 | I68: 66.5527677 | J68: 8.5 | K68: 26.5 | L68: 1 | M68: Abr.
A69: 1988 | B69: Mai. | C69: 70 | D69: 0.5 | E69: 35 | F69: 55.8 | G69: 20.8 | H69: 0 | I69: 70 | J69: 3.447232298 | K69: 35 | L69: 1 | M69: Mai.
A70: 1988 | B70: Jun. | C70: 93 | D70: 0.5 | E70: 46.5 | F70: 58.5 | G70: 12 | H70: 0 | I70: 70 | J70: 0 | K70: 46.5 | L70: 1 | M70: Jun.
A71: 1988 | B71: Jul. | C71: 112 | D71: 0.5 | E71: 56 | F71: 43.8 | G71: -12.2 | H71: 12.2 | I71: 58.8039793 | J71: -11.1960207 | K71: 54.9960207 | L71: 0.9820717982 | M71: Jul.
A72: 1988 | B72: Ago. | C72: 119 | D72: 0.5 | E72: 59.5 | F72: 0 | G72: -59.5 | H72: 71.7 | I72: 25.13369881 | J72: -33.67028049 | K72: 33.67028049 | L72: 0.565887067 | M72: Ago.
A73: 1988 | B73: Set. | C73: 105 | D73: 0.5 | E73: 52.5 | F73: 0.5 | G73: -52 | H73: 123.7 | I73: 11.95742453 | J73: -13.17627428 | K73: 13.67627428 | L73: 0.2605004625 | M73: Set.
A74: 1988 | B74: Out. | C74: 71 | D74: 0.5 | E74: 35.5 | F74: 84.8 | G74: 49.3 | H74: 9.338712823 | I74: 61.25742453 | J74: 49.3 | K74: 35.5 | L74: 1 | M74: Out.
A75: 1988 | B75: Nov. | C75: 46 | D75: 0.5 | E75: 23 | F75: 130.2 | G75: 107.2 | H75: 0 | I75: 70 | J75: 8.742575472 | K75: 23 | L75: 1 | M75: Nov.
A76: 1988 | B76: Dez. | C76: 26 | D76: 0.5 | E76: 13 | F76: 19.9 | G76: 6.9 | H76: 0 | I76: 70 | J76: 0 | K76: 13 | L76: 1 | M76: Dez.
E82: =IF(C82="","",C82*D82) ->  | M82: =IF(B82="","",B82) -> 
G83: =IF(C83="","",F83-E83) ->  | H83: =IF(G83="","",IF(G83>=0,-$B$13*LN(I83/$B$13),H82-G83)) ->  | I83: =IF(G83="","",IF(G83>0,MIN($B$13,I82+G83),$B$13*EXP(-H83/$B$13))) ->  | J83: =IF(G83="","",I83-I82) ->  | K83: =IF(G83="","",IF(G83>0,E83,F83+ABS(J83))) ->  | L83: =IF(G83="","",K83/E83) -> 
E146: =IF(C146="","",C146*D146) ->  | M146: =IF(B146="","",B146) -> 
G147: =IF(C147="","",F147-E147) ->  | H147: =IF(G147="","",IF(G147>=0,-$B$13*LN(I147/$B$13),H146-G147)) ->  | I147: =IF(G147="","",IF(G147>0,MIN($B$13,I146+G147),$B$13*EXP(-H147/$B$13))) ->  | J147: =IF(G147="","",I147-I146) ->  | K147: =IF(G147="","",IF(G147>0,E147,F147+ABS(J147))) ->  | L147: =IF(G147="","",K147/E147) -> 
E210: =IF(C210="","",C210*D210) ->  | M210: =IF(B210="","",B210) -> 
G211: =IF(C211="","",F211-E211) ->  | H211: =IF(G211="","",IF(G211>=0,-$B$13*LN(I211/$B$13),H210-G211)) ->  | I211: =IF(G211="","",IF(G211>0,MIN($B$13,I210+G211),$B$13*EXP(-H211/$B$13))) ->  | J211: =IF(G211="","",I211-I210) ->  | K211: =IF(G211="","",IF(G211>0,E211,F211+ABS(J211))) ->  | L211: =IF(G211="","",K211/E211) -> 
E274: =IF(C274="","",C274*D274) ->  | M274: =IF(B274="","",B274) -> 
G275: =IF(C275="","",F275-E275) ->  | H275: =IF(G275="","",IF(G275>=0,-$B$13*LN(I275/$B$13),H274-G275)) ->  | I275: =IF(G275="","",IF(G275>0,MIN($B$13,I274+G275),$B$13*EXP(-H275/$B$13))) ->  | J275: =IF(G275="","",I275-I274) ->  | K275: =IF(G275="","",IF(G275>0,E275,F275+ABS(J275))) ->  | L275: =IF(G275="","",K275/E275) -> 
E338: =IF(C338="","",C338*D338) ->  | M338: =IF(B338="","",B338) -> 
G339: =IF(C339="","",F339-E339) ->  | H339: =IF(G339="","",IF(G339>=0,-$B$13*LN(I339/$B$13),H338-G339)) ->  | I339: =IF(G339="","",IF(G339>0,MIN($B$13,I338+G339),$B$13*EXP(-H339/$B$13))) ->  | J339: =IF(G339="","",I339-I338) ->  | K339: =IF(G339="","",IF(G339>0,E339,F339+ABS(J339))) ->  | L339: =IF(G339="","",K339/E339) -> 
E402: =IF(C402="","",C402*D402) ->  | M402: =IF(B402="","",B402) -> 
G403: =IF(C403="","",F403-E403) ->  | H403: =IF(G403="","",IF(G403>=0,-$B$13*LN(I403/$B$13),H402-G403)) ->  | I403: =IF(G403="","",IF(G403>0,MIN($B$13,I402+G403),$B$13*EXP(-H403/$B$13))) ->  | J403: =IF(G403="","",I403-I402) ->  | K403: =IF(G403="","",IF(G403>0,E403,F403+ABS(J403))) ->  | L403: =IF(G403="","",K403/E403) -> 
E466: =IF(C466="","",C466*D466) ->  | M466: =IF(B466="","",B466) -> 
G467: =IF(C467="","",F467-E467) ->  | H467: =IF(G467="","",IF(G467>=0,-$B$13*LN(I467/$B$13),H466-G467)) ->  | I467: =IF(G467="","",IF(G467>0,MIN($B$13,I466+G467),$B$13*EXP(-H467/$B$13))) ->  | J467: =IF(G467="","",I467-I466) ->  | K467: =IF(G467="","",IF(G467>0,E467,F467+ABS(J467))) ->  | L467: =IF(G467="","",K467/E467) -> 
E530: =IF(C530="","",C530*D530) ->  | M530: =IF(B530="","",B530) -> 
G531: =IF(C531="","",F531-E531) ->  | H531: =IF(G531="","",IF(G531>=0,-$B$13*LN(I531/$B$13),H530-G531)) ->  | I531: =IF(G531="","",IF(G531>0,MIN($B$13,I530+G531),$B$13*EXP(-H531/$B$13))) ->  | J531: =IF(G531="","",I531-I530) ->  | K531: =IF(G531="","",IF(G531>0,E531,F531+ABS(J531))) ->  | L531: =IF(G531="","",K531/E531) -> 
E594: =IF(C594="","",C594*D594) ->  | M594: =IF(B594="","",B594) -> 
G595: =IF(C595="","",F595-E595) ->  | H595: =IF(G595="","",IF(G595>=0,-$B$13*LN(I595/$B$13),H594-G595)) ->  | I595: =IF(G595="","",IF(G595>0,MIN($B$13,I594+G595),$B$13*EXP(-H595/$B$13))) ->  | J595: =IF(G595="","",I595-I594) ->  | K595: =IF(G595="","",IF(G595>0,E595,F595+ABS(J595))) ->  | L595: =IF(G595="","",K595/E595) -> 
E658: =IF(C658="","",C658*D658) ->  | M658: =IF(B658="","",B658) -> 
G659: =IF(C659="","",F659-E659) ->  | H659: =IF(G659="","",IF(G659>=0,-$B$13*LN(I659/$B$13),H658-G659)) ->  | I659: =IF(G659="","",IF(G659>0,MIN($B$13,I658+G659),$B$13*EXP(-H659/$B$13))) ->  | J659: =IF(G659="","",I659-I658) ->  | K659: =IF(G659="","",IF(G659>0,E659,F659+ABS(J659))) ->  | L659: =IF(G659="","",K659/E659) -> 
E722: =IF(C722="","",C722*D722) ->  | M722: =IF(B722="","",B722) -> 
G723: =IF(C723="","",F723-E723) ->  | H723: =IF(G723="","",IF(G723>=0,-$B$13*LN(I723/$B$13),H722-G723)) ->  | I723: =IF(G723="","",IF(G723>0,MIN($B$13,I722+G723),$B$13*EXP(-H723/$B$13))) ->  | J723: =IF(G723="","",I723-I722) ->  | K723: =IF(G723="","",IF(G723>0,E723,F723+ABS(J723))) ->  | L723: =IF(G723="","",K723/E723) -> 
E786: =IF(C786="","",C786*D786) ->  | M786: =IF(B786="","",B786) -> 
G787: =IF(C787="","",F787-E787) ->  | H787: =IF(G787="","",IF(G787>=0,-$B$13*LN(I787/$B$13),H786-G787)) ->  | I787: =IF(G787="","",IF(G787>0,MIN($B$13,I786+G787),$B$13*EXP(-H787/$B$13))) ->  | J787: =IF(G787="","",I787-I786) ->  | K787: =IF(G787="","",IF(G787>0,E787,F787+ABS(J787))) ->  | L787: =IF(G787="","",K787/E787) -> 
E850: =IF(C850="","",C850*D850) ->  | M850: =IF(B850="","",B850) -> 
G851: =IF(C851="","",F851-E851) ->  | H851: =IF(G851="","",IF(G851>=0,-$B$13*LN(I851/$B$13),H850-G851)) ->  | I851: =IF(G851="","",IF(G851>0,MIN($B$13,I850+G851),$B$13*EXP(-H851/$B$13))) ->  | J851: =IF(G851="","",I851-I850) ->  | K851: =IF(G851="","",IF(G851>0,E851,F851+ABS(J851))) ->  | L851: =IF(G851="","",K851/E851) -> 
E914: =IF(C914="","",C914*D914) ->  | M914: =IF(B914="","",B914) -> 
G915: =IF(C915="","",F915-E915) ->  | H915: =IF(G915="","",IF(G915>=0,-$B$13*LN(I915/$B$13),H914-G915)) ->  | I915: =IF(G915="","",IF(G915>0,MIN($B$13,I914+G915),$B$13*EXP(-H915/$B$13))) ->  | J915: =IF(G915="","",I915-I914) ->  | K915: =IF(G915="","",IF(G915>0,E915,F915+ABS(J915))) ->  | L915: =IF(G915="","",K915/E915) -> 
E978: =IF(C978="","",C978*D978) ->  | M978: =IF(B978="","",B978) -> 
G979: =IF(C979="","",F979-E979) ->  | H979: =IF(G979="","",IF(G979>=0,-$B$13*LN(I979/$B$13),H978-G979)) ->  | I979: =IF(G979="","",IF(G979>0,MIN($B$13,I978+G979),$B$13*EXP(-H979/$B$13))) ->  | J979: =IF(G979="","",I979-I978) ->  | K979: =IF(G979="","",IF(G979>0,E979,F979+ABS(J979))) ->  | L979: =IF(G979="","",K979/E979) -> 
E1042: =IF(C1042="","",C1042*D1042) ->  | M1042: =IF(B1042="","",B1042) -> 
G1043: =IF(C1043="","",F1043-E1043) ->  | H1043: =IF(G1043="","",IF(G1043>=0,-$B$13*LN(I1043/$B$13),H1042-G1043)) ->  | I1043: =IF(G1043="","",IF(G1043>0,MIN($B$13,I1042+G1043),$B$13*EXP(-H1043/$B$13))) ->  | J1043: =IF(G1043="","",I1043-I1042) ->  | K1043: =IF(G1043="","",IF(G1043>0,E1043,F1043+ABS(J1043))) ->  | L1043: =IF(G1043="","",K1043/E1043) -> 
E1106: =IF(C1106="","",C1106*D1106) ->  | M1106: =IF(B1106="","",B1106) -> 
G1107: =IF(C1107="","",F1107-E1107) ->  | H1107: =IF(G1107="","",IF(G1107>=0,-$B$13*LN(I1107/$B$13),H1106-G1107)) ->  | I1107: =IF(G1107="","",IF(G1107>0,MIN($B$13,I1106+G1107),$B$13*EXP(-H1107/$B$13))) ->  | J1107: =IF(G1107="","",I1107-I1106) ->  | K1107: =IF(G1107="","",IF(G1107>0,E1107,F1107+ABS(J1107))) ->  | L1107: =IF(G1107="","",K1107/E1107) -> 
E1170: =IF(C1170="","",C1170*D1170) ->  | M1170: =IF(B1170="","",B1170) -> 
G1171: =IF(C1171="","",F1171-E1171) ->  | H1171: =IF(G1171="","",IF(G1171>=0,-$B$13*LN(I1171/$B$13),H1170-G1171)) ->  | I1171: =IF(G1171="","",IF(G1171>0,MIN($B$13,I1170+G1171),$B$13*EXP(-H1171/$B$13))) ->  | J1171: =IF(G1171="","",I1171-I1170) ->  | K1171: =IF(G1171="","",IF(G1171>0,E1171,F1171+ABS(J1171))) ->  | L1171: =IF(G1171="","",K1171/E1171) -> 
E1234: =IF(C1234="","",C1234*D1234) ->  | M1234: =IF(B1234="","",B1234) -> 
G1235: =IF(C1235="","",F1235-E1235) ->  | H1235: =IF(G1235="","",IF(G1235>=0,-$B$13*LN(I1235/$B$13),H1234-G1235)) ->  | I1235: =IF(G1235="","",IF(G1235>0,MIN($B$13,I1234+G1235),$B$13*EXP(-H1235/$B$13))) ->  | J1235: =IF(G1235="","",I1235-I1234) ->  | K1235: =IF(G1235="","",IF(G1235>0,E1235,F1235+ABS(J1235))) ->  | L1235: =IF(G1235="","",K1235/E1235) -> 
E1298: =IF(C1298="","",C1298*D1298) ->  | M1298: =IF(B1298="","",B1298) -> 
G1299: =IF(C1299="","",F1299-E1299) ->  | H1299: =IF(G1299="","",IF(G1299>=0,-$B$13*LN(I1299/$B$13),H1298-G1299)) ->  | I1299: =IF(G1299="","",IF(G1299>0,MIN($B$13,I1298+G1299),$B$13*EXP(-H1299/$B$13))) ->  | J1299: =IF(G1299="","",I1299-I1298) ->  | K1299: =IF(G1299="","",IF(G1299>0,E1299,F1299+ABS(J1299))) ->  | L1299: =IF(G1299="","",K1299/E1299) -> 
E1362: =IF(C1362="","",C1362*D1362) ->  | M1362: =IF(B1362="","",B1362) -> 
G1363: =IF(C1363="","",F1363-E1363) ->  | H1363: =IF(G1363="","",IF(G1363>=0,-$B$13*LN(I1363/$B$13),H1362-G1363)) ->  | I1363: =IF(G1363="","",IF(G1363>0,MIN($B$13,I1362+G1363),$B$13*EXP(-H1363/$B$13))) ->  | J1363: =IF(G1363="","",I1363-I1362) ->  | K1363: =IF(G1363="","",IF(G1363>0,E1363,F1363+ABS(J1363))) ->  | L1363: =IF(G1363="","",K1363/E1363) -> 
E1426: =IF(C1426="","",C1426*D1426) ->  | M1426: =IF(B1426="","",B1426) -> 
G1427: =IF(C1427="","",F1427-E1427) ->  | H1427: =IF(G1427="","",IF(G1427>=0,-$B$13*LN(I1427/$B$13),H1426-G1427)) ->  | I1427: =IF(G1427="","",IF(G1427>0,MIN($B$13,I1426+G1427),$B$13*EXP(-H1427/$B$13))) ->  | J1427: =IF(G1427="","",I1427-I1426) ->  | K1427: =IF(G1427="","",IF(G1427>0,E1427,F1427+ABS(J1427))) ->  | L1427: =IF(G1427="","",K1427/E1427) -> 
E1490: =IF(C1490="","",C1490*D1490) ->  | M1490: =IF(B1490="","",B1490) -> 
G1491: =IF(C1491="","",F1491-E1491) ->  | H1491: =IF(G1491="","",IF(G1491>=0,-$B$13*LN(I1491/$B$13),H1490-G1491)) ->  | I1491: =IF(G1491="","",IF(G1491>0,MIN($B$13,I1490+G1491),$B$13*EXP(-H1491/$B$13))) ->  | J1491: =IF(G1491="","",I1491-I1490) ->  | K1491: =IF(G1491="","",IF(G1491>0,E1491,F1491+ABS(J1491))) ->  | L1491: =IF(G1491="","",K1491/E1491) -> 
E1554: =IF(C1554="","",C1554*D1554) ->  | M1554: =IF(B1554="","",B1554) -> 
G1555: =IF(C1555="","",F1555-E1555) ->  | H1555: =IF(G1555="","",IF(G1555>=0,-$B$13*LN(I1555/$B$13),H1554-G1555)) ->  | I1555: =IF(G1555="","",IF(G1555>0,MIN($B$13,I1554+G1555),$B$13*EXP(-H1555/$B$13))) ->  | J1555: =IF(G1555="","",I1555-I1554) ->  | K1555: =IF(G1555="","",IF(G1555>0,E1555,F1555+ABS(J1555))) ->  | L1555: =IF(G1555="","",K1555/E1555) -> 
E1618: =IF(C1618="","",C1618*D1618) ->  | M1618: =IF(B1618="","",B1618) -> 
G1619: =IF(C1619="","",F1619-E1619) ->  | H1619: =IF(G1619="","",IF(G1619>=0,-$B$13*LN(I1619/$B$13),H1618-G1619)) ->  | I1619: =IF(G1619="","",IF(G1619>0,MIN($B$13,I1618+G1619),$B$13*EXP(-H1619/$B$13))) ->  | J1619: =IF(G1619="","",I1619-I1618) ->  | K1619: =IF(G1619="","",IF(G1619>0,E1619,F1619+ABS(J1619))) ->  | L1619: =IF(G1619="","",K1619/E1619) -> 
E1682: =IF(C1682="","",C1682*D1682) ->  | M1682: =IF(B1682="","",B1682) -> 
G1683: =IF(C1683="","",F1683-E1683) ->  | H1683: =IF(G1683="","",IF(G1683>=0,-$B$13*LN(I1683/$B$13),H1682-G1683)) ->  | I1683: =IF(G1683="","",IF(G1683>0,MIN($B$13,I1682+G1683),$B$13*EXP(-H1683/$B$13))) ->  | J1683: =IF(G1683="","",I1683-I1682) ->  | K1683: =IF(G1683="","",IF(G1683>0,E1683,F1683+ABS(J1683))) ->  | L1683: =IF(G1683="","",K1683/E1683) -> 
E1746: =IF(C1746="","",C1746*D1746) ->  | M1746: =IF(B1746="","",B1746) -> 
G1747: =IF(C1747="","",F1747-E1747) ->  | H1747: =IF(G1747="","",IF(G1747>=0,-$B$13*LN(I1747/$B$13),H1746-G1747)) ->  | I1747: =IF(G1747="","",IF(G1747>0,MIN($B$13,I1746+G1747),$B$13*EXP(-H1747/$B$13))) ->  | J1747: =IF(G1747="","",I1747-I1746) ->  | K1747: =IF(G1747="","",IF(G1747>0,E1747,F1747+ABS(J1747))) ->  | L1747: =IF(G1747="","",K1747/E1747) -> 
E1810: =IF(C1810="","",C1810*D1810) ->  | M1810: =IF(B1810="","",B1810) -> 
G1811: =IF(C1811="","",F1811-E1811) ->  | H1811: =IF(G1811="","",IF(G1811>=0,-$B$13*LN(I1811/$B$13),H1810-G1811)) ->  | I1811: =IF(G1811="","",IF(G1811>0,MIN($B$13,I1810+G1811),$B$13*EXP(-H1811/$B$13))) ->  | J1811: =IF(G1811="","",I1811-I1810) ->  | K1811: =IF(G1811="","",IF(G1811>0,E1811,F1811+ABS(J1811))) ->  | L1811: =IF(G1811="","",K1811/E1811) -> 
E1874: =IF(C1874="","",C1874*D1874) ->  | M1874: =IF(B1874="","",B1874) -> 
G1875: =IF(C1875="","",F1875-E1875) ->  | H1875: =IF(G1875="","",IF(G1875>=0,-$B$13*LN(I1875/$B$13),H1874-G1875)) ->  | I1875: =IF(G1875="","",IF(G1875>0,MIN($B$13,I1874+G1875),$B$13*EXP(-H1875/$B$13))) ->  | J1875: =IF(G1875="","",I1875-I1874) ->  | K1875: =IF(G1875="","",IF(G1875>0,E1875,F1875+ABS(J1875))) ->  | L1875: =IF(G1875="","",K1875/E1875) -> 
E1938: =IF(C1938="","",C1938*D1938) ->  | M1938: =IF(B1938="","",B1938) -> 
G1939: =IF(C1939="","",F1939-E1939) ->  | H1939: =IF(G1939="","",IF(G1939>=0,-$B$13*LN(I1939/$B$13),H1938-G1939)) ->  | I1939: =IF(G1939="","",IF(G1939>0,MIN($B$13,I1938+G1939),$B$13*EXP(-H1939/$B$13))) ->  | J1939: =IF(G1939="","",I1939-I1938) ->  | K1939: =IF(G1939="","",IF(G1939>0,E1939,F1939+ABS(J1939))) ->  | L1939: =IF(G1939="","",K1939/E1939) -> 
E2002: =IF(C2002="","",C2002*D2002) ->  | M2002: =IF(B2002="","",B2002) -> 
G2003: =IF(C2003="","",F2003-E2003) ->  | H2003: =IF(G2003="","",IF(G2003>=0,-$B$13*LN(I2003/$B$13),H2002-G2003)) ->  | I2003: =IF(G2003="","",IF(G2003>0,MIN($B$13,I2002+G2003),$B$13*EXP(-H2003/$B$13))) ->  | J2003: =IF(G2003="","",I2003-I2002) ->  | K2003: =IF(G2003="","",IF(G2003>0,E2003,F2003+ABS(J2003))) ->  | L2003: =IF(G2003="","",K2003/E2003) -> 
E2066: =IF(C2066="","",C2066*D2066) ->  | M2066: =IF(B2066="","",B2066) -> 
G2067: =IF(C2067="","",F2067-E2067) ->  | H2067: =IF(G2067="","",IF(G2067>=0,-$B$13*LN(I2067/$B$13),H2066-G2067)) ->  | I2067: =IF(G2067="","",IF(G2067>0,MIN($B$13,I2066+G2067),$B$13*EXP(-H2067/$B$13))) ->  | J2067: =IF(G2067="","",I2067-I2066) ->  | K2067: =IF(G2067="","",IF(G2067>0,E2067,F2067+ABS(J2067))) ->  | L2067: =IF(G2067="","",K2067/E2067) -> 
E2130: =IF(C2130="","",C2130*D2130) ->  | M2130: =IF(B2130="","",B2130) -> 
G2131: =IF(C2131="","",F2131-E2131) ->  | H2131: =IF(G2131="","",IF(G2131>=0,-$B$13*LN(I2131/$B$13),H2130-G2131)) ->  | I2131: =IF(G2131="","",IF(G2131>0,MIN($B$13,I2130+G2131),$B$13*EXP(-H2131/$B$13))) ->  | J2131: =IF(G2131="","",I2131-I2130) ->  | K2131: =IF(G2131="","",IF(G2131>0,E2131,F2131+ABS(J2131))) ->  | L2131: =IF(G2131="","",K2131/E2131) -> 
E2194: =IF(C2194="","",C2194*D2194) ->  | M2194: =IF(B2194="","",B2194) -> 
G2195: =IF(C2195="","",F2195-E2195) ->  | H2195: =IF(G2195="","",IF(G2195>=0,-$B$13*LN(I2195/$B$13),H2194-G2195)) ->  | I2195: =IF(G2195="","",IF(G2195>0,MIN($B$13,I2194+G2195),$B$13*EXP(-H2195/$B$13))) ->  | J2195: =IF(G2195="","",I2195-I2194) ->  | K2195: =IF(G2195="","",IF(G2195>0,E2195,F2195+ABS(J2195))) ->  | L2195: =IF(G2195="","",K2195/E2195) -> 
E2258: =IF(C2258="","",C2258*D2258) ->  | M2258: =IF(B2258="","",B2258) -> 
G2259: =IF(C2259="","",F2259-E2259) ->  | H2259: =IF(G2259="","",IF(G2259>=0,-$B$13*LN(I2259/$B$13),H2258-G2259)) ->  | I2259: =IF(G2259="","",IF(G2259>0,MIN($B$13,I2258+G2259),$B$13*EXP(-H2259/$B$13))) ->  | J2259: =IF(G2259="","",I2259-I2258) ->  | K2259: =IF(G2259="","",IF(G2259>0,E2259,F2259+ABS(J2259))) ->  | L2259: =IF(G2259="","",K2259/E2259) -> 
E2322: =IF(C2322="","",C2322*D2322) ->  | M2322: =IF(B2322="","",B2322) -> 
G2323: =IF(C2323="","",F2323-E2323) ->  | H2323: =IF(G2323="","",IF(G2323>=0,-$B$13*LN(I2323/$B$13),H2322-G2323)) ->  | I2323: =IF(G2323="","",IF(G2323>0,MIN($B$13,I2322+G2323),$B$13*EXP(-H2323/$B$13))) ->  | J2323: =IF(G2323="","",I2323-I2322) ->  | K2323: =IF(G2323="","",IF(G2323>0,E2323,F2323+ABS(J2323))) ->  | L2323: =IF(G2323="","",K2323/E2323) -> 
E2386: =IF(C2386="","",C2386*D2386) ->  | M2386: =IF(B2386="","",B2386) -> 
G2387: =IF(C2387="","",F2387-E2387) ->  | H2387: =IF(G2387="","",IF(G2387>=0,-$B$13*LN(I2387/$B$13),H2386-G2387)) ->  | I2387: =IF(G2387="","",IF(G2387>0,MIN($B$13,I2386+G2387),$B$13*EXP(-H2387/$B$13))) ->  | J2387: =IF(G2387="","",I2387-I2386) ->  | K2387: =IF(G2387="","",IF(G2387>0,E2387,F2387+ABS(J2387))) ->  | L2387: =IF(G2387="","",K2387/E2387) -> 
E2450: =IF(C2450="","",C2450*D2450) ->  | M2450: =IF(B2450="","",B2450) -> 
G2451: =IF(C2451="","",F2451-E2451) ->  | H2451: =IF(G2451="","",IF(G2451>=0,-$B$13*LN(I2451/$B$13),H2450-G2451)) ->  | I2451: =IF(G2451="","",IF(G2451>0,MIN($B$13,I2450+G2451),$B$13*EXP(-H2451/$B$13))) ->  | J2451: =IF(G2451="","",I2451-I2450) ->  | K2451: =IF(G2451="","",IF(G2451>0,E2451,F2451+ABS(J2451))) ->  | L2451: =IF(G2451="","",K2451/E2451) -> 
E2514: =IF(C2514="","",C2514*D2514) ->  | M2514: =IF(B2514="","",B2514) -> 
G2515: =IF(C2515="","",F2515-E2515) ->  | H2515: =IF(G2515="","",IF(G2515>=0,-$B$13*LN(I2515/$B$13),H2514-G2515)) ->  | I2515: =IF(G2515="","",IF(G2515>0,MIN($B$13,I2514+G2515),$B$13*EXP(-H2515/$B$13))) ->  | J2515: =IF(G2515="","",I2515-I2514) ->  | K2515: =IF(G2515="","",IF(G2515>0,E2515,F2515+ABS(J2515))) ->  | L2515: =IF(G2515="","",K2515/E2515) -> 
E2578: =IF(C2578="","",C2578*D2578) ->  | M2578: =IF(B2578="","",B2578) -> 
G2579: =IF(C2579="","",F2579-E2579) ->  | H2579: =IF(G2579="","",IF(G2579>=0,-$B$13*LN(I2579/$B$13),H2578-G2579)) ->  | I2579: =IF(G2579="","",IF(G2579>0,MIN($B$13,I2578+G2579),$B$13*EXP(-H2579/$B$13))) ->  | J2579: =IF(G2579="","",I2579-I2578) ->  | K2579: =IF(G2579="","",IF(G2579>0,E2579,F2579+ABS(J2579))) ->  | L2579: =IF(G2579="","",K2579/E2579) -> 
E2642: =IF(C2642="","",C2642*D2642) ->  | M2642: =IF(B2642="","",B2642) -> 
G2643: =IF(C2643="","",F2643-E2643) ->  | H2643: =IF(G2643="","",IF(G2643>=0,-$B$13*LN(I2643/$B$13),H2642-G2643)) ->  | I2643: =IF(G2643="","",IF(G2643>0,MIN($B$13,I2642+G2643),$B$13*EXP(-H2643/$B$13))) ->  | J2643: =IF(G2643="","",I2643-I2642) ->  | K2643: =IF(G2643="","",IF(G2643>0,E2643,F2643+ABS(J2643))) ->  | L2643: =IF(G2643="","",K2643/E2643) -> 
E2706: =IF(C2706="","",C2706*D2706) ->  | M2706: =IF(B2706="","",B2706) -> 
G2707: =IF(C2707="","",F2707-E2707) ->  | H2707: =IF(G2707="","",IF(G2707>=0,-$B$13*LN(I2707/$B$13),H2706-G2707)) ->  | I2707: =IF(G2707="","",IF(G2707>0,MIN($B$13,I2706+G2707),$B$13*EXP(-H2707/$B$13))) ->  | J2707: =IF(G2707="","",I2707-I2706) ->  | K2707: =IF(G2707="","",IF(G2707>0,E2707,F2707+ABS(J2707))) ->  | L2707: =IF(G2707="","",K2707/E2707) -> 
E2770: =IF(C2770="","",C2770*D2770) ->  | M2770: =IF(B2770="","",B2770) -> 
G2771: =IF(C2771="","",F2771-E2771) ->  | H2771: =IF(G2771="","",IF(G2771>=0,-$B$13*LN(I2771/$B$13),H2770-G2771)) ->  | I2771: =IF(G2771="","",IF(G2771>0,MIN($B$13,I2770+G2771),$B$13*EXP(-H2771/$B$13))) ->  | J2771: =IF(G2771="","",I2771-I2770) ->  | K2771: =IF(G2771="","",IF(G2771>0,E2771,F2771+ABS(J2771))) ->  | L2771: =IF(G2771="","",K2771/E2771) -> 
E2834: =IF(C2834="","",C2834*D2834) ->  | M2834: =IF(B2834="","",B2834) -> 
G2835: =IF(C2835="","",F2835-E2835) ->  | H2835: =IF(G2835="","",IF(G2835>=0,-$B$13*LN(I2835/$B$13),H2834-G2835)) ->  | I2835: =IF(G2835="","",IF(G2835>0,MIN($B$13,I2834+G2835),$B$13*EXP(-H2835/$B$13))) ->  | J2835: =IF(G2835="","",I2835-I2834) ->  | K2835: =IF(G2835="","",IF(G2835>0,E2835,F2835+ABS(J2835))) ->  | L2835: =IF(G2835="","",K2835/E2835) -> 
E2898: =IF(C2898="","",C2898*D2898) ->  | M2898: =IF(B2898="","",B2898) -> 
G2899: =IF(C2899="","",F2899-E2899) ->  | H2899: =IF(G2899="","",IF(G2899>=0,-$B$13*LN(I2899/$B$13),H2898-G2899)) ->  | I2899: =IF(G2899="","",IF(G2899>0,MIN($B$13,I2898+G2899),$B$13*EXP(-H2899/$B$13))) ->  | J2899: =IF(G2899="","",I2899-I2898) ->  | K2899: =IF(G2899="","",IF(G2899>0,E2899,F2899+ABS(J2899))) ->  | L2899: =IF(G2899="","",K2899/E2899) -> 
E2962: =IF(C2962="","",C2962*D2962) ->  | M2962: =IF(B2962="","",B2962) -> 
G2963: =IF(C2963="","",F2963-E2963) ->  | H2963: =IF(G2963="","",IF(G2963>=0,-$B$13*LN(I2963/$B$13),H2962-G2963)) ->  | I2963: =IF(G2963="","",IF(G2963>0,MIN($B$13,I2962+G2963),$B$13*EXP(-H2963/$B$13))) ->  | J2963: =IF(G2963="","",I2963-I2962) ->  | K2963: =IF(G2963="","",IF(G2963>0,E2963,F2963+ABS(J2963))) ->  | L2963: =IF(G2963="","",K2963/E2963) -> 
E3026: =IF(C3026="","",C3026*D3026) ->  | M3026: =IF(B3026="","",B3026) -> 
G3027: =IF(C3027="","",F3027-E3027) ->  | H3027: =IF(G3027="","",IF(G3027>=0,-$B$13*LN(I3027/$B$13),H3026-G3027)) ->  | I3027: =IF(G3027="","",IF(G3027>0,MIN($B$13,I3026+G3027),$B$13*EXP(-H3027/$B$13))) ->  | J3027: =IF(G3027="","",I3027-I3026) ->  | K3027: =IF(G3027="","",IF(G3027>0,E3027,F3027+ABS(J3027))) ->  | L3027: =IF(G3027="","",K3027/E3027) -> 
E3090: =IF(C3090="","",C3090*D3090) ->  | M3090: =IF(B3090="","",B3090) -> 
G3091: =IF(C3091="","",F3091-E3091) ->  | H3091: =IF(G3091="","",IF(G3091>=0,-$B$13*LN(I3091/$B$13),H3090-G3091)) ->  | I3091: =IF(G3091="","",IF(G3091>0,MIN($B$13,I3090+G3091),$B$13*EXP(-H3091/$B$13))) ->  | J3091: =IF(G3091="","",I3091-I3090) ->  | K3091: =IF(G3091="","",IF(G3091>0,E3091,F3091+ABS(J3091))) ->  | L3091: =IF(G3091="","",K3091/E3091) -> 
E3154: =IF(C3154="","",C3154*D3154) ->  | M3154: =IF(B3154="","",B3154) -> 
G3155: =IF(C3155="","",F3155-E3155) ->  | H3155: =IF(G3155="","",IF(G3155>=0,-$B$13*LN(I3155/$B$13),H3154-G3155)) ->  | I3155: =IF(G3155="","",IF(G3155>0,MIN($B$13,I3154+G3155),$B$13*EXP(-H3155/$B$13))) ->  | J3155: =IF(G3155="","",I3155-I3154) ->  | K3155: =IF(G3155="","",IF(G3155>0,E3155,F3155+ABS(J3155))) ->  | L3155: =IF(G3155="","",K3155/E3155) -> 
E3218: =IF(C3218="","",C3218*D3218) ->  | M3218: =IF(B3218="","",B3218) -> 
G3219: =IF(C3219="","",F3219-E3219) ->  | H3219: =IF(G3219="","",IF(G3219>=0,-$B$13*LN(I3219/$B$13),H3218-G3219)) ->  | I3219: =IF(G3219="","",IF(G3219>0,MIN($B$13,I3218+G3219),$B$13*EXP(-H3219/$B$13))) ->  | J3219: =IF(G3219="","",I3219-I3218) ->  | K3219: =IF(G3219="","",IF(G3219>0,E3219,F3219+ABS(J3219))) ->  | L3219: =IF(G3219="","",K3219/E3219) -> 
E3282: =IF(C3282="","",C3282*D3282) ->  | M3282: =IF(B3282="","",B3282) -> 
G3283: =IF(C3283="","",F3283-E3283) ->  | H3283: =IF(G3283="","",IF(G3283>=0,-$B$13*LN(I3283/$B$13),H3282-G3283)) ->  | I3283: =IF(G3283="","",IF(G3283>0,MIN($B$13,I3282+G3283),$B$13*EXP(-H3283/$B$13))) ->  | J3283: =IF(G3283="","",I3283-I3282) ->  | K3283: =IF(G3283="","",IF(G3283>0,E3283,F3283+ABS(J3283))) ->  | L3283: =IF(G3283="","",K3283/E3283) -> 
E3346: =IF(C3346="","",C3346*D3346) ->  | M3346: =IF(B3346="","",B3346) -> 
G3347: =IF(C3347="","",F3347-E3347) ->  | H3347: =IF(G3347="","",IF(G3347>=0,-$B$13*LN(I3347/$B$13),H3346-G3347)) ->  | I3347: =IF(G3347="","",IF(G3347>0,MIN($B$13,I3346+G3347),$B$13*EXP(-H3347/$B$13))) ->  | J3347: =IF(G3347="","",I3347-I3346) ->  | K3347: =IF(G3347="","",IF(G3347>0,E3347,F3347+ABS(J3347))) ->  | L3347: =IF(G3347="","",K3347/E3347) -> 
E3410: =IF(C3410="","",C3410*D3410) ->  | M3410: =IF(B3410="","",B3410) -> 
G3411: =IF(C3411="","",F3411-E3411) ->  | H3411: =IF(G3411="","",IF(G3411>=0,-$B$13*LN(I3411/$B$13),H3410-G3411)) ->  | I3411: =IF(G3411="","",IF(G3411>0,MIN($B$13,I3410+G3411),$B$13*EXP(-H3411/$B$13))) ->  | J3411: =IF(G3411="","",I3411-I3410) ->  | K3411: =IF(G3411="","",IF(G3411>0,E3411,F3411+ABS(J3411))) ->  | L3411: =IF(G3411="","",K3411/E3411) -> 
E3474: =IF(C3474="","",C3474*D3474) ->  | M3474: =IF(B3474="","",B3474) -> 
G3475: =IF(C3475="","",F3475-E3475) ->  | H3475: =IF(G3475="","",IF(G3475>=0,-$B$13*LN(I3475/$B$13),H3474-G3475)) ->  | I3475: =IF(G3475="","",IF(G3475>0,MIN($B$13,I3474+G3475),$B$13*EXP(-H3475/$B$13))) ->  | J3475: =IF(G3475="","",I3475-I3474) ->  | K3475: =IF(G3475="","",IF(G3475>0,E3475,F3475+ABS(J3475))) ->  | L3475: =IF(G3475="","",K3475/E3475) -> 
E3538: =IF(C3538="","",C3538*D3538) ->  | M3538: =IF(B3538="","",B3538) -> 
G3539: =IF(C3539="","",F3539-E3539) ->  | H3539: =IF(G3539="","",IF(G3539>=0,-$B$13*LN(I3539/$B$13),H3538-G3539)) ->  | I3539: =IF(G3539="","",IF(G3539>0,MIN($B$13,I3538+G3539),$B$13*EXP(-H3539/$B$13))) ->  | J3539: =IF(G3539="","",I3539-I3538) ->  | K3539: =IF(G3539="","",IF(G3539>0,E3539,F3539+ABS(J3539))) ->  | L3539: =IF(G3539="","",K3539/E3539) -> 
E3602: =IF(C3602="","",C3602*D3602) ->  | M3602: =IF(B3602="","",B3602) -> 
G3603: =IF(C3603="","",F3603-E3603) ->  | H3603: =IF(G3603="","",IF(G3603>=0,-$B$13*LN(I3603/$B$13),H3602-G3603)) ->  | I3603: =IF(G3603="","",IF(G3603>0,MIN($B$13,I3602+G3603),$B$13*EXP(-H3603/$B$13))) ->  | J3603: =IF(G3603="","",I3603-I3602) ->  | K3603: =IF(G3603="","",IF(G3603>0,E3603,F3603+ABS(J3603))) ->  | L3603: =IF(G3603="","",K3603/E3603) -> 
E3666: =IF(C3666="","",C3666*D3666) ->  | M3666: =IF(B3666="","",B3666) -> 
G3667: =IF(C3667="","",F3667-E3667) ->  | H3667: =IF(G3667="","",IF(G3667>=0,-$B$13*LN(I3667/$B$13),H3666-G3667)) ->  | I3667: =IF(G3667="","",IF(G3667>0,MIN($B$13,I3666+G3667),$B$13*EXP(-H3667/$B$13))) ->  | J3667: =IF(G3667="","",I3667-I3666) ->  | K3667: =IF(G3667="","",IF(G3667>0,E3667,F3667+ABS(J3667))) ->  | L3667: =IF(G3667="","",K3667/E3667) -> 
E3730: =IF(C3730="","",C3730*D3730) ->  | M3730: =IF(B3730="","",B3730) -> 
G3731: =IF(C3731="","",F3731-E3731) ->  | H3731: =IF(G3731="","",IF(G3731>=0,-$B$13*LN(I3731/$B$13),H3730-G3731)) ->  | I3731: =IF(G3731="","",IF(G3731>0,MIN($B$13,I3730+G3731),$B$13*EXP(-H3731/$B$13))) ->  | J3731: =IF(G3731="","",I3731-I3730) ->  | K3731: =IF(G3731="","",IF(G3731>0,E3731,F3731+ABS(J3731))) ->  | L3731: =IF(G3731="","",K3731/E3731) -> 
E3794: =IF(C3794="","",C3794*D3794) ->  | M3794: =IF(B3794="","",B3794) -> 
G3795: =IF(C3795="","",F3795-E3795) ->  | H3795: =IF(G3795="","",IF(G3795>=0,-$B$13*LN(I3795/$B$13),H3794-G3795)) ->  | I3795: =IF(G3795="","",IF(G3795>0,MIN($B$13,I3794+G3795),$B$13*EXP(-H3795/$B$13))) ->  | J3795: =IF(G3795="","",I3795-I3794) ->  | K3795: =IF(G3795="","",IF(G3795>0,E3795,F3795+ABS(J3795))) ->  | L3795: =IF(G3795="","",K3795/E3795) -> 
E3858: =IF(C3858="","",C3858*D3858) ->  | M3858: =IF(B3858="","",B3858) -> 
G3859: =IF(C3859="","",F3859-E3859) ->  | H3859: =IF(G3859="","",IF(G3859>=0,-$B$13*LN(I3859/$B$13),H3858-G3859)) ->  | I3859: =IF(G3859="","",IF(G3859>0,MIN($B$13,I3858+G3859),$B$13*EXP(-H3859/$B$13))) ->  | J3859: =IF(G3859="","",I3859-I3858) ->  | K3859: =IF(G3859="","",IF(G3859>0,E3859,F3859+ABS(J3859))) ->  | L3859: =IF(G3859="","",K3859/E3859) -> 
E3922: =IF(C3922="","",C3922*D3922) ->  | M3922: =IF(B3922="","",B3922) -> 
G3923: =IF(C3923="","",F3923-E3923) ->  | H3923: =IF(G3923="","",IF(G3923>=0,-$B$13*LN(I3923/$B$13),H3922-G3923)) ->  | I3923: =IF(G3923="","",IF(G3923>0,MIN($B$13,I3922+G3923),$B$13*EXP(-H3923/$B$13))) ->  | J3923: =IF(G3923="","",I3923-I3922) ->  | K3923: =IF(G3923="","",IF(G3923>0,E3923,F3923+ABS(J3923))) ->  | L3923: =IF(G3923="","",K3923/E3923) -> 
E3986: =IF(C3986="","",C3986*D3986) ->  | M3986: =IF(B3986="","",B3986) -> 
G3987: =IF(C3987="","",F3987-E3987) ->  | H3987: =IF(G3987="","",IF(G3987>=0,-$B$13*LN(I3987/$B$13),H3986-G3987)) ->  | I3987: =IF(G3987="","",IF(G3987>0,MIN($B$13,I3986+G3987),$B$13*EXP(-H3987/$B$13))) ->  | J3987: =IF(G3987="","",I3987-I3986) ->  | K3987: =IF(G3987="","",IF(G3987>0,E3987,F3987+ABS(J3987))) ->  | L3987: =IF(G3987="","",K3987/E3987) -> 
